Cogmind - Beta 17 *** ADVENTURER MODE // 2026.07.01 @ 20:58:54 Player: The Archmage Result: Destroyed by EA-ED3(R) with Subdweller Laser Performance ------------- Evolutions (0) 0 Regions Visited (3) 600 Robots Destroyed (32) 160 Value Destroyed (716) 716 Prototype IDs (3) 60 Alien Tech Used (0) 0 Bonus (60) 60 TOTAL SCORE: 1596 Bonus ------- Follower Combat Kills 60 Cogmind --------- Core Integrity 0/250 Matter 300/300 Energy 250/250 System Corruption 0% Temperature Cool (15) Movement Walking (190) Ox1 Location -10/Subcaves Parts ------- > --- POWER (1) -------- Ion Engine > --- PROPULSION (2) --- Aluminum Leg Aluminum Leg > --- UTILITY (2) ------ Large Storage Unit > --- WEAPON (2) ------- Beamcaster Makeshift Hammer > --- INVENTORY (15) --- Aluminum Leg Aluminum Leg Aluminum Leg Carbon-fiber Leg Carbon-fiber Leg Experimental Sensor Array Terrain Scanner Scrap Shield Grenade Launcher Peak State ------------ > --- POWER ------------ Ion Engine > --- PROPULSION ------- Aluminum Leg Aluminum Leg > --- UTILITY ---------- Large Storage Unit Seismic Detector > --- WEAPON ----------- Beamcaster Makeshift Hammer > --- INVENTORY -------- Ion Engine Aluminum Leg Aluminum Leg Aluminum Leg Aluminum Leg Aluminum Leg Aluminum Leg Carbon-fiber Leg Carbon-fiber Leg Machine Analyzer Experimental Sensor Array Terrain Scanner Medium Laser Light Cannon Grenade Launcher [Rating: 16] Favorites ----------- Power Ion Engine Engine Ion Engine Propulsion Aluminum Leg Leg Aluminum Leg Utility Seismic Detector Device Seismic Detector Storage Large Storage Unit Weapon Medium Laser Energy Gun Medium Laser Ballistic Cannon Light Cannon Launcher Grenade Launcher Impact Weapon Makeshift Hammer Build | -11 -10 -10 -10 ------- Run | Yrd Mat Min Sub Slots Evolved . | . . . . Power . | . . . . Propulsion . | . . . . Utility . | . . . . Weapon . | . . . . Parts Attached 17 | 7 2 2 6 Power 2 | 1 . . 1 Engine 2 | 1 . . 1 Core . | . . . . Reactor . | . . . . Propulsion 5 | 2 . . 3 Treads . | . . . . Leg 5 | 2 . . 3 Wheel . | . . . . Hover . | . . . . Flight . | . . . . Utility 4 | 2 2 . . Device 1 | 1 . . . Storage 3 | 1 2 . . Processor . | . . . . Hackware . | . . . . Protection . | . . . . Artifact . | . . . . Weapon 6 | 2 . 2 2 Energy Gun 3 | 2 . . 1 Energy Cannon . | . . . . Ballistic Gun . | . . . . Ballistic Cannon 1 | . . 1 . Launcher 1 | . . 1 . Special Weapon . | . . . . Impact Weapon 1 | . . . 1 Slashing Weapon . | . . . . Piercing Weapon . | . . . . Special Melee Weapon . | . . . . Unidentified Prototypes . | . . . . Parts Lost 7 | . . 1 6 Power 1 | . . . 1 Propulsion 3 | . . . 3 Utility 1 | . . . 1 Weapon 2 | . . 1 1 Highest Loss Streak 4 | . . 1 4 To Critical Strikes . | . . . . Average Backups 9 | . 2 9 13 Power . | . . . . Propulsion 4 | . . 4 7 Utility 2 | . . 2 3 Weapon 1 | . 1 1 1 Tool/Special . | . . . . Unused Backups 9 | . . . 9 Power . | . . . . Propulsion 5 | . . . 5 Utility 4 | . . . 4 Weapon . | . . . . Tool/Special . | . . . . Average Slot Usage (%) 98 | . 99 100 97 Engine 13 | . 14 14 13 Leg 27 | . 27 28 27 Device 13 | . 14 14 12 Storage 14 | . 14 14 14 Energy Gun 15 | . 28 15 8 Ballistic Cannon 8 | . . 12 9 Impact Weapon 4 | . . . 9 Peak Build Rating 16 | 7 7 9 16 Average Rating 10 | 5 6 8 13 On Entrance 5 | . 7 7 9 Avg Prop Armor Cover (%) . | . . . . Naked Turns . | . . . . Heaviest Build 34 | 15 30 31 34 Greatest Support 20 | 20 20 20 20 Greatest Overweight (x) 4 | 4 1 1 3 Average Overweight (x) . | . . 1 1 Largest Inventory Capacity 15 | 8 15 15 15 Average Capacity 14 | 7 13 15 15 Most Carried 15 | 4 3 11 15 Average Carried 9 | . 2 9 13 Final Capacity 15 | 8 15 15 15 Final Carried 11 | . 3 11 10 Class Distribution -------------------- 96% | Mutant 3% | Scavenger-Mutant Dominant Class ---------------- Mutant | -10/Materials Mutant | -10/Mines Mutant | -10/Subcaves Resources | -11 -10 -10 -10 ----------- Run | Yrd Mat Min Sub Matter Collected 552 | 255 45 106 146 Remotely . | . . . . Salvage Created 888 | 89 276 258 265 Parts 54 | 2 24 21 7 Haulers Intercepted 1 | . 1 . . Recyclers Shooed 1 | . 1 . . Parts Field Recycled . | . . . . Retrieved Matter . | . . . . Parts Self-Destructed 6 | . . . 6 Prevented 1 | . . . 1 Parts Restored . | . . . . Kills | -11 -10 -10 -10 ------- Run | Yrd Mat Min Sub Combat Hostiles Destroyed 26 | . 9 10 7 Melee 2 | . . . 2 Guns 11 | . 7 2 2 Cannons 6 | . . 6 . AOE 4 | . 2 2 . Classes Destroyed 8 | 2 3 1 2 Tunneler 1 | 1 . . . Hauler 1 | . 1 . . Recycler 1 | 1 . . . Watcher 3 | . 3 . . Swarmer 12 | . 9 3 . Grunt 7 | . . 7 . Sentry 1 | . . . 1 Subdweller 6 | . . . 6 Best Kill Streak 3 | 1 3 3 2 Combat Bots Only 3 | . 3 3 2 Max Kills in Single Turn 3 | 1 3 2 1 Gunslinging . | . . . . Exploded 2 | . 2 2 . Melee 1 | . . . 1 Uniques/NPCs Destroyed . | . . . . Combat | -11 -10 -10 -10 -------- Run | Yrd Mat Min Sub Hostile Shots Fired 98 | . 17 27 54 Missed 24 | . 4 7 13 Hits 74 | . 13 20 41 Projectile 74 | . 13 20 41 Critical Strikes 2 | . . 1 1 Damage Taken 947 | . 99 182 666 Core 261 | . 27 8 226 Absorbed by Shields . | . . . . Ignored by Resistances 273 | . 31 59 183 Core Remaining (%) 100 | 100 . . . Volleys Fired 67 | 4 25 19 19 Largest 2 | 2 2 2 2 Hottest 105 | 90 90 90 105 Shots Fired 124 | 8 49 38 29 Gun 98 | 8 49 22 19 Cannon 23 | . . 14 9 Launcher 3 | . . 2 1 Special . | . . . . Kinetic 23 | . . 14 9 Thermal 66 | 4 24 19 19 Explosive 3 | . . 2 1 Electromagnetic 32 | 4 25 3 . Robot Hit Streak 42 | 5 14 23 42 Robot Miss Streak 3 | 1 3 1 1 Penetration Max . | . . . . Secondary Targets . | . . . . Shots Hit Robots 113 | 6 33 34 40 Core Hits 42 | 2 16 18 6 Critical Kills . | . . . . Critical Parts Destroyed 2 | . . . 2 Critical Strikes 7 | 1 2 . 4 Burn 4 | 1 2 . 1 Smash 3 | . . . 3 Melee Attacks 30 | . . . 30 Impact 30 | . . . 30 Slashing . | . . . . Piercing . | . . . . Sneak Attacks 1 | . . . 1 Combat Hostiles 1 | . . . 1 Follow-up Attacks . | . . . . Damage Inflicted 2597 | 77 532 664 1324 Guns 1057 | 77 450 267 263 Cannons 297 | . . 212 85 Explosions 246 | . 72 174 . Melee 976 | . . . 976 Ramming 21 | . 10 11 . Kinetic 297 | . . 212 85 Thermal 788 | 24 273 228 263 Explosive 174 | . . 174 . Electromagnetic 341 | 53 249 39 . Impact 976 | . . . 976 Slashing . | . . . . Piercing . | . . . . Highest Corruption . | . . . . Average Corruption . | . . . . Corruption Purged . | . . . . Corruption Blocked . | . . . . Overload Shots . | . . . . Overflow Damage 242 | . . . 242 Projectiles . | . . . . Explosions . | . . . . Melee 242 | . . . 242 Knockbacks 7 | . . 2 5 Impact 4 | . . . 4 Kinetic 2 | . . 2 . Secondary 1 | . . . 1 Self-Inflicted Damage 21 | . 17 4 . Shots 2 | . 1 1 . Rammed . | . . . . Targets Rammed 11 | . 6 5 . Kicked 11 | . 6 5 . Crushed . | . . . . Highest Temperature 175 | 30 120 175 6 Average Temperature 48 | 18 39 71 2 Received Heat Transfer 384 | . . 138 246 Siege Activations . | . . . . Martial Activations . | . . . . Shielding Activations . | . . . . Robots Disrupted . | . . . . Combat Hostiles . | . . . . Robots Corrupted 3 | . . . 3 Combat Hostiles 3 | . . . 3 Parts Fried 5 | . . . 5 Impact Corruptions 7 | . . . 7 Robots Melted . | . . . . Combat Hostiles . | . . . . Parts Melted 3 | . 2 . 1 Heat Transferred 2259 | 148 890 666 555 Parts Sabotaged . | . . . . Parts Stolen . | . . . . Parts Stripped . | . . . . Power Chain Reactions 1 | . 1 . . Alert | -11 -10 -10 -10 ------- Run | Yrd Mat Min Sub Maximum Alert Level . | . . . . Low Security (%) 100 | 100 100 100 . Level 1 . | . . . . Level 2 . | . . . . Level 3 . | . . . . Level 4 . | . . . . Level 5 . | . . . . High Security . | . . . . Max Security . | . . . . Peak Influence 131 | 5 76 131 . Initial . | . . . . Average 23 | 1 16 30 . Influence Increases 628 | 10 277 321 20 Destroy 0b10 Robot/C 460 | . 180 260 20 Destroy 0b10 Robot/NC 30 | 10 20 . . Destroy Leader 68 | . 38 30 . Allied During Kill 2 | . . 2 . Successful Hack 32 | . 32 . . Disable Machine 9 | . . 9 . Destroy Structure 27 | . 7 20 . Influence Decreases 628 | 10 277 321 20 Time Decay 598 | 10 247 321 20 Purge Threat 30 | . 30 . . Squads Dispatched 1 | . . 1 . Investigation . | . . . . Extermination . | . . . . Reinforcement . | . . . . Assault 1 | . . 1 . Garrison . | . . . . Intercept . | . . . . Searches Triggered . | . . . . Construction Impeded . | . . . . Haulers Reinforced . | . . . . Active Scanning Responses . | . . . . Cargo Convoy Interrupts . | . . . . Stealth | -11 -10 -10 -10 --------- Run | Yrd Mat Min Sub Distress Signals . | . . . . Communications Jammed . | . . . . Distress Signals . | . . . . Times Spotted 36 | . 15 12 9 Peak Tracking Total 4 | . 4 4 2 Tactical Retreats . | . . . . Traps | -11 -10 -10 -10 ------- Run | Yrd Mat Min Sub Traps Triggered 1 | . 1 . . Indirectly . | . . . . Trap Hack Attempts . | . . . . Triggered . | . . . . Disarmed . | . . . . Reprogrammed . | . . . . Reused . | . . . . Traps Extracted . | . . . . Installed . | . . . . Triggered . | . . . . Machines | -11 -10 -10 -10 ---------- Run | Yrd Mat Min Sub Machines Disabled 1 | . . 1 . Max in Single Turn 1 | . . 1 . Machines Repaired . | . . . . Machines Dismantled . | . . . . Machines Sabotaged . | . . . . Overloaded Fab Kills . | . . . . Hacking | -11 -10 -10 -10 --------- Run | Yrd Mat Min Sub Machines Accessed 10 | . 8 1 1 Terminals 9 | . 8 1 . Fabricators . | . . . . Repair Stations . | . . . . Recycling Units . | . . . . Scanalyzers . | . . . . Garrison Access . | . . . . Total Hacks 30 | . 23 4 3 Successful 22 | . 15 4 3 Failed 8 | . 8 . . Catastrophic 1 | . 1 . . Database Lockouts . | . . . . Manual 10 | . 9 1 . Terminals 27 | . 23 4 . Fabricators . | . . . . Repair Stations . | . . . . Recycling Units . | . . . . Scanalyzers . | . . . . Garrison Access . | . . . . Terminal Hacks 14 | . 8 3 3 Record 6 | . . 3 3 Prototype ID Bank 2 | . 2 . . Emergency Access Points 1 | . 1 . . Unreport Threat 1 | . 1 . . Locate Traps 3 | . 3 . . Zone Layout 1 | . 1 . . Fabricator Hacks . | . . . . Repair Station Hacks . | . . . . Recycling Unit Hacks . | . . . . Scanalyzer . | . . . . Garrison Access Hacks . | . . . . Unauthorized Hacks 8 | . 7 1 . Terminals 8 | . 7 1 . Botnet 3 | . 2 1 . Skim 5 | . 5 . . Fabricators . | . . . . Repair Stations . | . . . . Recycling Units . | . . . . Scanalyzers . | . . . . Garrison Access . | . . . . Data Cores Recovered . | . . . . Used . | . . . . Hacking Detections 6 | . 6 . . Full Trace Events 1 | . 1 . . Feedback Events . | . . . . Feedback Blocked . | . . . . Robot Schematics Acquired . | . . . . Robots Built . | . . . . Authchips . | . . . . Time . | . . . . Total Robot Build Rating . | . . . . Part Schematics Acquired . | . . . . Parts Built . | . . . . Authchips . | . . . . Time . | . . . . Total Part Build Rating . | . . . . Part Studies Acquired . | . . . . Parts Repaired . | . . . . Time . | . . . . Parts Recycled . | . . . . Recycled Matter . | . . . . Retrieved Matter . | . . . . Retrieved Components . | . . . . Parts Scanalyzed . | . . . . Part Schematics Acquired . | . . . . Parts Damaged . | . . . . Bothacking | -11 -10 -10 -10 ------------ Run | Yrd Mat Min Sub Used RIF Installer . | . . . . Robots Hacked . | . . . . Non-combat . | . . . . Combat . | . . . . Robot Hacks Applied . | . . . . Relay Couplers Released . | . . . . Fabnet Peak Effective % . | . . . . Robots Rewired . | . . . . Allies Hacked . | . . . . Hacks Repelled . | . . . . Allies | -11 -10 -10 -10 -------- Run | Yrd Mat Min Sub Total Allies 1 | . . 1 . Largest Group 1 | . . 1 1 Highest-Rated Group 31 | . . 31 28 Highest-Rated Ally 31 | . . 31 28 Total Orders . | . . . . Ally Attacks 27 | . . 24 3 Total Damage 393 | . . 350 43 Kills 5 | . . 5 . Allies Corrupted . | . . . . Allies Melted . | . . . . Intel | -11 -10 -10 -10 ------- Run | Yrd Mat Min Sub Active Infowar (turns) 4675 | 1 1060 1574 2040 Seismic 4675 | 1 1060 1574 2040 Robot Analysis Total . | . . . . Derelict Logs Recovered 2 | . . 1 1 Drone Launches . | . . . . Drone Recoveries . | . . . . Exploration | -11 -10 -10 -10 ------------- Run | Yrd Mat Min Sub Turns Passed 5017 | 113 1060 1574 2270 Spaces Moved 2347 | 71 575 643 1058 Core 17 | 17 . . . Treads . | . . . . Legs 2330 | 54 575 643 1058 Wheels . | . . . . Hover . | . . . . Flight . | . . . . Fastest Speed 50 | 50 120 190 190 Average Speed 180 | 122 157 190 190 Slowest Speed 330 | 250 190 190 330 Overloaded Moves . | . . . . Propulsion Burnouts . | . . . . Robots Hopped . | . . . . Potential Cave-ins . | . . . . Cave-ins Triggered . | . . . . Exploration Rate (%) 65 | 4 90 92 75 Regions Visited 3 Branch Regions 2 Pre-discovered Areas 2 | . . 1 1 Known Exits Taken 1 | . . 1 . Unknown Exits Taken 2 | 1 1 . . Scrap Searched 5 | . . 1 4 Spaces Dug 2 | . . . 2 Terrain Destroyed 36 | . 6 26 4 Melee 2 | . . . 2 Projectile . | . . . . AOE 34 | . 6 26 2 Terrain Rammed . | . . . . Walls Destroyed . | . . . . Machines Disabled . | . . . . Actions | -11 -10 -10 -10 --------- Run | Yrd Mat Min Sub Total 2968 | 88 675 952 1253 Wait 462 | . 59 274 129 Move 2344 | 70 574 642 1058 Hop . | . . . . Pick Up 27 | 7 6 9 5 Fast Attach . | . . . . Attach 14 | 7 1 1 5 Detach . | . . . . Swap 9 | . 2 2 5 Drop 4 | . 2 . 2 Fire 67 | 4 25 19 19 Melee 30 | . . . 30 Ram . | . . . . Kick 11 | . 6 5 . Crush . | . . . . Escape Stasis . | . . . . Rewire . | . . . . Trap . | . . . . Miscellaneous . | . . . . Route ------- -11/Scrapyard -10/Materials (discovered 6 exits: [*Mat x3] / *Min x2 / Sub) -10/Mines (discovered 2 exits: [*Mat] / *Sub) -10/Subcaves (discovered 2 exits: *Mat / Rec) History --------- Turn | Location | Event 8 | -11/Scrapyard | Discovered new exit (range 15) 114 | -11/Scrapyard | Entered Materials 216 | -10/Materials | Discovered new exit (range 8) 326 | -10/Materials | Build established: Mutant 447 | -10/Materials | Discovered new exit (range 6) 734 | -10/Materials | Discovered new exit (range 16) 804 | -10/Materials | Discovered new exit (range 15) 898 | -10/Materials | Learned Storage emergency access door positions 905 | -10/Materials | Discovered new exit (range 10) 958 | -10/Materials | Learned location of 2 exits from Subcaves 1009 | -10/Materials | Identified exit to Subcaves 1174 | -10/Materials | Entered Mines 1175 | -10/Mines | Met a Derelict testing a Signal Generator 1402 | -10/Mines | Discovered new exit (range 6) 1486 | -10/Mines | Excavation squad dispatched 1486 | -10/Mines | A large section of the Mines collapsed 2102 | -10/Mines | Found a damaged Exp. Sensor Array with a note attached 2106 | -10/Mines | Found Prototype Device 2748 | -10/Mines | Entered Subcaves 2748 | -10/Subcaves | Accompanied by 1 ally 2749 | -10/Subcaves | Identified exit to Recycling 2749 | -10/Subcaves | Identified exit to Materials 2873 | -10/Subcaves | A swath of the cavern ceiling suddenly collapsed 2945 | -10/Subcaves | Shifting Twisted Machinery released Shrapnel Trap 2947 | -10/Subcaves | Shifting Twisted Machinery released Mak. Hammer 3716 | -10/Subcaves | Visited Clippyterm 3722 | -10/Subcaves | Learned location of Extension (-6) 3917 | -10/Subcaves | Core integrity fell below 50% 4771 | -10/Subcaves | Ambushed by Subdwellers from Twisted Machinery 4772 | -10/Subcaves | Shifting Twisted Machinery released Sub. Power Source 4819 | -10/Subcaves | Core integrity fell below 20% 4833 | -10/Subcaves | Lost 4 parts (1p1n1u1w) 5018 | -10/Subcaves | Destroyed by EA-ED3(R) with Subdweller Laser Last Messages --------------- YH-7O0(R) knocked back. HG-AH0(u) tweaks Twisted Machinery. YH-7O0(R) suffers critical hit (Smash). Destroyed Sub. Optics. YH-7O0(R) system corrupted by crushing effect. Lgt. Cannon destroyed. Destroyed Disposable Heat Sink. YH-7O0(R) system corrupted by crushing effect. Aluminum Leg destroyed. YH-7O0(R) system terminally corrupted. Destroyed Sub. Power Source. VN-SD4(R) system corrupted by crushing effect. VN-SD4(R) knocked back. VN-SD4(R) suffers critical hit (Smash). VN-SD4(R) affixes Scrap Shield Fragment to Scrap Shield. VN-SD4(R) destroyed. Subatomizers dissect the Sub. Monowheel. Acquired 10 matter. Subatomizers dissect the Sub. Monowheel. Map ----- +----------------------------------------------------+ | ?????????????????????????????????????????????????? | | ?????????????????????????????????????????????????? | | ?????????????????????????????????????????????????? | | ?????????????????????????????????????????????????? | | ?????????????????????????????????????????????????? | | ?????????????????????????????????????????????????? | | ?????????????????????????????????????????????????? | | ?????????????????????????????????????????????????? | | ?????????????????????????????????????????????????? | | ?????????????????????????????????????????????????? | | ?????????????????????????????????????????????????? | | ?????????????????????????????????????????????????? | | ?????????????????????????????????????????????????? | | ?????????????????????????????????????????????????? | | ?????????????????????????????????????????????????? | | ?????????????????????????????????????????????????? | | ?????????????????????????????????????????????????? | | ?????????????????????????????????????????????????? | | ?????????????????????????????????????????????????? | | ?????????????????????????????????????????????????? | | ?????????????????###?????????????????????????????? | | ????????????????## ????????????????????????????? | | ?????????????#### ???????????????????????????? | | ????????????#" """ #########?????????????????? | | ????????????# " R R ## # ##????????????????? | | ????????????????## ## @ #????????????????? | | ????????????????????#" # #????????????????? | | ????????????????????##" ###### ##????????????????? | | ?????????????????????###????# #????????????????? | | ????????????????????????????# #?################ | | ????????????????????????????# ### ## # # ## | | ????????????????????????????# " " | | ????????????????????????????## ## # ### ##"""# | | ?????????????????????????????############?######## | | ?????????????????????????????????????????????????? | | ?????????????????????????????????????????????????? | | ?????????????????????????????????????????????????? | | ?????????????????????????????????????????????????? | | ?????????????????????????????????????????????????? | | ?????????????????????????????????????????????????? | | ?????????????????????????????????????????????????? | | ?????????????????????????????????????????????????? | | ?????????????????????????????????????????????????? | | ?????????????????????????????????????????????????? | | ?????????????????????????????????????????????????? | | ?????????????????????????????????????????????????? | | ?????????????????????????????????????????????????? | | ?????????????????????????????????????????????????? | | ?????????????????????????????????????????????????? | | ?????????????????????????????????????????????????? | +----------------------------------------------------+ Best States ------------- Heat Dissipation 25 Energy Generation 10 Energy Capacity 250 Matter Stores 300 Matter Capacity 300 Sight Range 16 Terrain Scan Density 10 Resistance: KI 20 Resistance: TH 20 Resistance: EX 20 Resistance: EM 20 Resistance: I 20 Resistance: S 20 Resistance: P 20 Evasion (%) 55 Offensive Hacking 10 Item Schematics ----------------- None Robot Schematics ------------------ None Fabricated ------------ Nothing Repaired ---------- Nothing Studied --------- None Alien Tech Used ----------------- None Achievements -------------- None Challenges ------------ None Game ------ Seed MediumAntigravPick Manual? 0 Play Time 00:19:31 Cumulative 50.6 hours Start 2026.07.01 @ 20:41:40 End 2026.07.01 @ 20:58:54 Sessions 1 Manual Loads 0 Difficulty Adventurer Special Mode None Game No. 108 Rogue 0 Adventurer 108 Explorer 0 Win Type - Total 1 Types 1/0/0/0/0/0/0/0/0/0 Lore% 57 Gallery% 30 Achievement% 35 Wizard Run 0 Options --------- Layout 1 ASCII 0 Keyboard 0 Movement Mouse Keybinds 0 Fullscreen 1 Font 24/Smallcaps Map View 50x40 Zoom Use 0% Tactical HUD 0 Map Filters NONE Filters NONE Steam 1 RUN: 66c9aa83-e7fd-45d5-a1f7-bfd02c4cecba